[Event "*** SCC Grand Prix: Titled Tuesday Blitz"]
[Site "Chess.com"]
[Date "2020.07.14"]
[Round "6"]
[White "WeAintSurePal"]
[Black "jaskol95"]
[Result "1-0"]
[WhiteElo "2280"]
[BlackElo "2390"]
[TimeControl "180+1"]
[EndTime "11:08:14 PDT"]
[Termination "WeAintSurePal won by resignation"]

1. d4 {[%clk 0:03:00.9]} 1... Nf6 {[%clk 0:02:59.8]} 2. Nf3 {[%clk 0:03:01.8]}
2... g6 {[%clk 0:03:00.1]} 3. Nc3 {[%clk 0:03:00.9]} 3... Bg7 {[%clk 0:03:00.5]}
4. e4 {[%clk 0:03:01.4]} 4... d5 {[%clk 0:03:01.1]} 5. e5 {[%clk 0:02:59.6]}
5... Ne4 {[%clk 0:02:57.8]} 6. Be2 {[%clk 0:02:59.4]} 6... Nxc3 {[%clk 0:02:57]}
7. bxc3 {[%clk 0:02:59]} 7... c5 {[%clk 0:02:55.6]} 8. h4 {[%clk 0:02:58.2]}
8... cxd4 {[%clk 0:02:52.6]} 9. cxd4 {[%clk 0:02:58]} 9... h5 {[%clk 0:02:53.5]}
10. O-O {[%clk 0:02:54.2]} 10... Nc6 {[%clk 0:02:51.5]} 11. c3 {[%clk 0:02:52]}
11... Bg4 {[%clk 0:02:50.9]} 12. Ng5 {[%clk 0:02:51.5]} 12... Bxe2 {[%clk
0:02:49.7]} 13. Qxe2 {[%clk 0:02:52.4]} 13... e6 {[%clk 0:02:46.8]} 14. Qf3
{[%clk 0:02:50.3]} 14... Qd7 {[%clk 0:02:42.2]} 15. Ba3 {[%clk 0:02:49]} 15...
Bf8 {[%clk 0:02:31.7]} 16. Bxf8 {[%clk 0:02:47.2]} 16... Kxf8 {[%clk 0:02:27.7]}
17. Qf6 {[%clk 0:02:46.4]} 17... Kg8 {[%clk 0:02:26.7]} 18. Rab1 {[%clk
0:02:44.8]} 18... Na5 {[%clk 0:02:17.1]} 19. Rfd1 {[%clk 0:02:39.9]} 19... b5
{[%clk 0:02:13.2]} 20. Rd3 {[%clk 0:02:39.9]} 20... a6 {[%clk 0:02:08.1]} 21.
Rg3 {[%clk 0:02:39.5]} 21... Rh6 {[%clk 0:01:55.5]} 22. Nh3 {[%clk 0:02:25]}
22... Qd8 {[%clk 0:01:43.4]} 23. Qf4 {[%clk 0:02:24.6]} 23... Rh7 {[%clk
0:01:43.3]} 24. Ng5 {[%clk 0:02:23.5]} 24... Rg7 {[%clk 0:01:41.1]} 25. Rd1
{[%clk 0:02:14.2]} 25... Rc8 {[%clk 0:01:40.7]} 26. Rdd3 {[%clk 0:02:12]} 26...
Qd7 {[%clk 0:01:34.4]} 27. Rdf3 {[%clk 0:02:04.4]} 27... Nc6 {[%clk 0:01:13.6]}
28. Qe3 {[%clk 0:01:52.7]} 28... Ne7 {[%clk 0:01:07.4]} 29. Qd2 {[%clk
0:01:45.9]} 29... Nf5 {[%clk 0:01:07.3]} 30. Rh3 {[%clk 0:01:45]} 30... a5
{[%clk 0:00:53.5]} 31. Rf4 {[%clk 0:01:40.5]} 31... Rc4 {[%clk 0:00:49.8]} 32.
g4 {[%clk 0:01:38.2]} 32... hxg4 {[%clk 0:00:49.8]} 33. Rxg4 {[%clk 0:01:37.9]}
33... b4 {[%clk 0:00:49.8]} 34. cxb4 {[%clk 0:01:36.5]} 34... Qa4 {[%clk
0:00:35.5]} 35. bxa5 {[%clk 0:01:18.4]} 35... Rc2 {[%clk 0:00:31]} 36. Qd1
{[%clk 0:01:14.5]} 36... Rxa2 {[%clk 0:00:27.5]} 37. Qxa4 {[%clk 0:01:13.9]}
37... Rxa4 {[%clk 0:00:28.4]} 38. Rb3 {[%clk 0:01:09.6]} 38... Kf8 {[%clk
0:00:19.2]} 39. Rb8+ {[%clk 0:01:07.1]} 39... Ke7 {[%clk 0:00:19.7]} 40. Rb7+
{[%clk 0:01:08]} 40... Ke8 {[%clk 0:00:19.9]} 41. Rg3 {[%clk 0:01:03.4]} 41...
Nxd4 {[%clk 0:00:19.3]} 42. Kg2 {[%clk 0:00:57]} 42... Rxa5 {[%clk 0:00:12.1]}
43. Rc3 {[%clk 0:00:56.1]} 43... Ra8 {[%clk 0:00:12.6]} 44. Rcc7 {[%clk
0:00:53.8]} 44... Nf5 {[%clk 0:00:13.1]} 45. Nxf7 {[%clk 0:00:48.3]} 45... Nxh4+
{[%clk 0:00:09.9]} 46. Kh3 {[%clk 0:00:45.4]} 46... Nf5 {[%clk 0:00:10.4]} 47.
Nd6+ {[%clk 0:00:43.2]} 47... Nxd6 {[%clk 0:00:10.6]} 48. Rxg7 {[%clk
0:00:40.9]} 48... Nxb7 {[%clk 0:00:10.8]} 49. Rg8+ {[%clk 0:00:40.7]} 49... Kf7
{[%clk 0:00:08.2]} 50. Rxa8 {[%clk 0:00:41.6]} 50... Nc5 {[%clk 0:00:07.4]} 51.
Kg4 {[%clk 0:00:39]} 51... Ne4 {[%clk 0:00:04.9]} 52. f4 {[%clk 0:00:37.9]}
52... Nf2+ {[%clk 0:00:03.6]} 53. Kh4 {[%clk 0:00:36.8]} 53... Ne4 {[%clk
0:00:04]} 54. Kg4 {[%clk 0:00:28.2]} 54... Ke7 {[%clk 0:00:02.5]} 55. Ra7+
{[%clk 0:00:27.6]} 55... Kf8 {[%clk 0:00:03.1]} 56. Ra4 {[%clk 0:00:24.1]} 56...
Kf7 {[%clk 0:00:03]} 57. Rb4 {[%clk 0:00:22.8]} 57... Ke7 {[%clk 0:00:03.2]} 58.
Rb6 {[%clk 0:00:20.6]} 58... Kd7 {[%clk 0:00:03.4]} 59. Rb7+ {[%clk 0:00:20.2]}
59... Kc6 {[%clk 0:00:03.9]} 60. Rg7 {[%clk 0:00:20.5]} 60... d4 {[%clk
0:00:03.8]} 61. Rxg6 {[%clk 0:00:20]} 61... Kd5 {[%clk 0:00:04.4]} 62. Kf3
{[%clk 0:00:20]} 62... d3 {[%clk 0:00:04.5]} 63. Rg8 {[%clk 0:00:18.3]} 63... d2
{[%clk 0:00:04.4]} 64. Rd8+ {[%clk 0:00:18.5]} 64... Kc4 {[%clk 0:00:04.4]} 65.
Kxe4 {[%clk 0:00:18.7]} 1-0

[Event "*** SCC Grand Prix: Titled Tuesday Blitz"]
[Site "Chess.com"]
[Date "2020.07.14"]
[Round "6"]
[White "Jaka_Brilej"]
[Black "maximnovik"]
[Result "1-0"]
[WhiteElo "2333"]
[BlackElo "2483"]
[TimeControl "180+1"]
[EndTime "11:08:17 PDT"]
[Termination "Jaka_Brilej won by checkmate"]

1. e4 {[%clk 0:03:00.9]} 1... c6 {[%clk 0:02:59.6]} 2. Nf3 {[%clk 0:03:00.7]}
2... d5 {[%clk 0:03:00.1]} 3. Nc3 {[%clk 0:03:00.6]} 3... Bg4 {[%clk 0:03:00.6]}
4. h3 {[%clk 0:03:00.3]} 4... Bxf3 {[%clk 0:03:00.6]} 5. Qxf3 {[%clk 0:03:01.2]}
5... e6 {[%clk 0:03:00.8]} 6. d4 {[%clk 0:03:01.1]} 6... Nf6 {[%clk 0:03:00.3]}
7. Bd3 {[%clk 0:03:00.6]} 7... Be7 {[%clk 0:02:56.6]} 8. O-O {[%clk 0:02:56.6]}
8... dxe4 {[%clk 0:02:53.4]} 9. Nxe4 {[%clk 0:02:56.2]} 9... Qxd4 {[%clk
0:02:53.8]} 10. c3 {[%clk 0:02:56.1]} 10... Qd8 {[%clk 0:02:52.3]} 11. Bf4
{[%clk 0:02:20.7]} 11... Nbd7 {[%clk 0:02:50.7]} 12. Nd6+ {[%clk 0:02:19.9]}
12... Bxd6 {[%clk 0:02:48.3]} 13. Bxd6 {[%clk 0:02:20]} 13... Nb6 {[%clk
0:02:34.7]} 14. Ba3 {[%clk 0:02:18.2]} 14... Qd5 {[%clk 0:02:31.6]} 15. Qg3
{[%clk 0:02:13.8]} 15... O-O-O {[%clk 0:02:26.7]} 16. Be2 {[%clk 0:01:44.1]}
16... Ne4 {[%clk 0:02:11.9]} 17. Qh4 {[%clk 0:01:23.5]} 17... g5 {[%clk
0:02:05.2]} 18. Qh6 {[%clk 0:01:22.9]} 18... f5 {[%clk 0:01:36.2]} 19. Rad1
{[%clk 0:01:09.2]} 19... Qe5 {[%clk 0:01:36]} 20. Be7 {[%clk 0:00:47.8]} 20...
Rxd1 {[%clk 0:01:25.4]} 21. Rxd1 {[%clk 0:00:48.7]} 21... Nd5 {[%clk 0:01:23.5]}
22. Bxg5 {[%clk 0:00:32.2]} 22... Nexc3 {[%clk 0:01:16.7]} 23. bxc3 {[%clk
0:00:27.2]} 23... Qxe2 {[%clk 0:01:16.6]} 24. Rf1 {[%clk 0:00:20.6]} 24... Rg8
{[%clk 0:01:00.9]} 25. Bc1 {[%clk 0:00:15.1]} 25... Qf3 {[%clk 0:00:52.1]} 26.
Qxe6+ {[%clk 0:00:14.2]} 26... Kc7 {[%clk 0:00:51]} 27. g3 {[%clk 0:00:14.2]}
27... Rg6 {[%clk 0:00:28.9]} 28. Qe5+ {[%clk 0:00:14.3]} 28... Kb6 {[%clk
0:00:27.5]} 29. c4 {[%clk 0:00:14.1]} 29... f4 {[%clk 0:00:15.9]} 30. cxd5
{[%clk 0:00:12.1]} 30... fxg3 {[%clk 0:00:16.1]} 31. Qe3+ {[%clk 0:00:12.2]}
31... Qxe3 {[%clk 0:00:15.4]} 32. fxe3 {[%clk 0:00:12.3]} 32... cxd5 {[%clk
0:00:14.8]} 33. Bb2 {[%clk 0:00:12.4]} 33... Kb5 {[%clk 0:00:11]} 34. Bd4 {[%clk
0:00:11.8]} 34... b6 {[%clk 0:00:10.3]} 35. Kg2 {[%clk 0:00:12.1]} 35... Kc4
{[%clk 0:00:09.8]} 36. h4 {[%clk 0:00:11.7]} 36... Kd3 {[%clk 0:00:09.1]} 37.
Rf7 {[%clk 0:00:11.6]} 37... h5 {[%clk 0:00:08]} 38. Rxa7 {[%clk 0:00:11.2]}
38... Rg4 {[%clk 0:00:08.2]} 39. Rh7 {[%clk 0:00:10.3]} 39... Rxh4 {[%clk
0:00:08.3]} 40. Kxg3 {[%clk 0:00:09.8]} 40... Rg4+ {[%clk 0:00:08.5]} 41. Kf3
{[%clk 0:00:10.2]} 41... Rg6 {[%clk 0:00:06.8]} 42. Rxh5 {[%clk 0:00:09.6]}
42... Rc6 {[%clk 0:00:06.7]} 43. Rxd5 {[%clk 0:00:09]} 43... Kc4 {[%clk
0:00:06.2]} 44. Re5 {[%clk 0:00:08.6]} 44... b5 {[%clk 0:00:06.5]} 45. Rc5+
{[%clk 0:00:06.7]} 45... Rxc5 {[%clk 0:00:05.9]} 46. Bxc5 {[%clk 0:00:07.6]}
46... Kxc5 {[%clk 0:00:06.2]} 47. Kf4 {[%clk 0:00:07.9]} 47... Kb4 {[%clk
0:00:06.2]} 48. e4 {[%clk 0:00:07.7]} 48... Ka3 {[%clk 0:00:06.8]} 49. e5 {[%clk
0:00:08.4]} 49... Kxa2 {[%clk 0:00:07.3]} 50. e6 {[%clk 0:00:09.1]} 50... b4
{[%clk 0:00:07.8]} 51. e7 {[%clk 0:00:09.7]} 51... b3 {[%clk 0:00:08.4]} 52.
e8=Q {[%clk 0:00:10.3]} 52... b2 {[%clk 0:00:08.9]} 53. Qa4+ {[%clk 0:00:10.5]}
53... Kb1 {[%clk 0:00:08.9]} 54. Ke3 {[%clk 0:00:10.7]} 54... Kc1 {[%clk
0:00:09.2]} 55. Qc4+ {[%clk 0:00:10]} 55... Kd1 {[%clk 0:00:09.1]} 56. Qb3+
{[%clk 0:00:09.7]} 56... Kc1 {[%clk 0:00:08.7]} 57. Qc3+ {[%clk 0:00:09.9]}
57... Kb1 {[%clk 0:00:08.4]} 58. Kd3 {[%clk 0:00:08.7]} 58... Ka2 {[%clk
0:00:08.6]} 59. Qa5+ {[%clk 0:00:08.5]} 59... Kb1 {[%clk 0:00:08.6]} 60. Qa4
{[%clk 0:00:07.8]} 60... Kc1 {[%clk 0:00:08]} 61. Qc2# {[%clk 0:00:08]} 1-0

[Event "*** SCC Grand Prix: Titled Tuesday Blitz"]
[Site "Chess.com"]
[Date "2020.07.14"]
[Round "6"]
[White "Michaelson_11"]
[Black "Cocaino74"]
[Result "1-0"]
[WhiteElo "2121"]
[BlackElo "2309"]
[TimeControl "180+1"]
[EndTime "11:08:18 PDT"]
[Termination "Michaelson_11 won by checkmate"]

1. e4 {[%clk 0:03:00.3]} 1... c5 {[%clk 0:02:59.4]} 2. Nf3 {[%clk 0:03:00.5]}
2... Nc6 {[%clk 0:02:59.5]} 3. d4 {[%clk 0:03:01.4]} 3... cxd4 {[%clk
0:03:00.2]} 4. Nxd4 {[%clk 0:03:02.3]} 4... g6 {[%clk 0:03:01.1]} 5. c4 {[%clk
0:03:00.8]} 5... Nf6 {[%clk 0:03:01.7]} 6. Nc3 {[%clk 0:03:00]} 6... d6 {[%clk
0:03:02.2]} 7. f3 {[%clk 0:02:58.9]} 7... Nxd4 {[%clk 0:03:01.8]} 8. Qxd4 {[%clk
0:02:59.8]} 8... Bg7 {[%clk 0:03:02.6]} 9. Be3 {[%clk 0:03:00.1]} 9... O-O
{[%clk 0:03:03.3]} 10. Qd2 {[%clk 0:02:57.7]} 10... Be6 {[%clk 0:03:03.7]} 11.
Rc1 {[%clk 0:02:53.5]} 11... Qa5 {[%clk 0:03:02.6]} 12. b3 {[%clk 0:02:49.9]}
12... Rfc8 {[%clk 0:03:01.9]} 13. Be2 {[%clk 0:02:43.7]} 13... a6 {[%clk
0:03:01.6]} 14. Na4 {[%clk 0:02:39.2]} 14... Qxd2+ {[%clk 0:02:55.6]} 15. Kxd2
{[%clk 0:02:40.1]} 15... Rab8 {[%clk 0:02:56.3]} 16. Nb6 {[%clk 0:02:37.3]}
16... Rc6 {[%clk 0:02:52.8]} 17. g4 {[%clk 0:02:35.9]} 17... Nd7 {[%clk
0:02:49.8]} 18. Nd5 {[%clk 0:02:31.8]} 18... Kf8 {[%clk 0:02:49.8]} 19. h4
{[%clk 0:02:30.5]} 19... b5 {[%clk 0:02:43.4]} 20. cxb5 {[%clk 0:02:25.3]} 20...
Rxc1 {[%clk 0:02:44.3]} 21. Rxc1 {[%clk 0:02:25.7]} 21... Bxd5 {[%clk
0:02:43.7]} 22. exd5 {[%clk 0:02:23.4]} 22... axb5 {[%clk 0:02:43.9]} 23. Bxb5
{[%clk 0:02:10.4]} 23... Ne5 {[%clk 0:02:19.6]} 24. Be2 {[%clk 0:01:59.6]} 24...
Bf6 {[%clk 0:02:16.2]} 25. g5 {[%clk 0:01:54.7]} 25... Bh8 {[%clk 0:02:16.1]}
26. f4 {[%clk 0:01:51.7]} 26... Nd7 {[%clk 0:02:13.5]} 27. Rc7 {[%clk
0:01:50.4]} 27... Ke8 {[%clk 0:02:12.9]} 28. Bb5 {[%clk 0:01:35.3]} 28... e6
{[%clk 0:02:09.2]} 29. dxe6 {[%clk 0:01:23.5]} 29... fxe6 {[%clk 0:02:09.1]} 30.
Rxd7 {[%clk 0:01:23.4]} 30... Rxb5 {[%clk 0:02:09]} 31. Rxh7 {[%clk 0:01:22.8]}
31... Ba1 {[%clk 0:02:08.8]} 32. Kc2 {[%clk 0:01:05.3]} 32... e5 {[%clk
0:02:03.1]} 33. Kb1 {[%clk 0:00:55.8]} 33... Bc3 {[%clk 0:01:47]} 34. Kc2 {[%clk
0:00:41.2]} 34... Ba1 {[%clk 0:01:31.1]} 35. a4 {[%clk 0:00:38.7]} 35... Ra5
{[%clk 0:01:25.6]} 36. h5 {[%clk 0:00:20.9]} 36... exf4 {[%clk 0:01:16.9]} 37.
Bxf4 {[%clk 0:00:20.6]} 37... Rf5 {[%clk 0:01:15.9]} 38. Bxd6 {[%clk 0:00:14]}
38... Rxg5 {[%clk 0:01:13.9]} 39. h6 {[%clk 0:00:12]} 39... Rh5 {[%clk
0:00:49.3]} 40. Re7+ {[%clk 0:00:11.5]} 40... Kd8 {[%clk 0:00:49.9]} 41. h7
{[%clk 0:00:11.9]} 41... Bf6 {[%clk 0:00:50.5]} 42. Rf7 {[%clk 0:00:09.4]} 42...
Ba1 {[%clk 0:00:48.4]} 43. Rf8+ {[%clk 0:00:09.4]} 43... Kd7 {[%clk 0:00:48.5]}
44. Bf4 {[%clk 0:00:04.8]} 44... Rxh7 {[%clk 0:00:46.8]} 45. a5 {[%clk
0:00:05.2]} 45... Rh5 {[%clk 0:00:20.9]} 46. a6 {[%clk 0:00:04.9]} 46... g5
{[%clk 0:00:21.5]} 47. a7 {[%clk 0:00:04.8]} 47... gxf4 {[%clk 0:00:20.9]} 48.
a8=Q {[%clk 0:00:05.1]} 48... Rh2+ {[%clk 0:00:21.6]} 49. Kd3 {[%clk 0:00:05.2]}
49... Rh3+ {[%clk 0:00:21.9]} 50. Ke4 {[%clk 0:00:05.2]} 50... Re3+ {[%clk
0:00:20.2]} 51. Kxf4 {[%clk 0:00:05.4]} 51... Re7 {[%clk 0:00:20.9]} 52. Qd5+
{[%clk 0:00:04.3]} 52... Kc7 {[%clk 0:00:20.6]} 53. Rf7 {[%clk 0:00:04.4]} 53...
Rxf7+ {[%clk 0:00:19.3]} 54. Qxf7+ {[%clk 0:00:05.3]} 54... Kb6 {[%clk
0:00:20.2]} 55. Ke3 {[%clk 0:00:04.7]} 55... Bh8 {[%clk 0:00:20]} 56. Kd3 {[%clk
0:00:05.1]} 56... Kb5 {[%clk 0:00:20.4]} 57. Kc2 {[%clk 0:00:05.4]} 57... Ba1
{[%clk 0:00:21]} 58. Qc4+ {[%clk 0:00:05.5]} 58... Kb6 {[%clk 0:00:21.3]} 59. b4
{[%clk 0:00:05.9]} 59... Bh8 {[%clk 0:00:22.2]} 60. Kb3 {[%clk 0:00:06.1]} 60...
Ba1 {[%clk 0:00:22.9]} 61. Ka4 {[%clk 0:00:05.9]} 61... Kb7 {[%clk 0:00:23.8]}
62. b5 {[%clk 0:00:05.7]} 62... Bh8 {[%clk 0:00:24.7]} 63. Qf7+ {[%clk
0:00:05.4]} 63... Kb6 {[%clk 0:00:24.9]} 64. Qd7 {[%clk 0:00:04.4]} 64... Ba1
{[%clk 0:00:25.3]} 65. Qc6+ {[%clk 0:00:04.5]} 65... Ka7 {[%clk 0:00:25.3]} 66.
b6+ {[%clk 0:00:04.7]} 66... Kb8 {[%clk 0:00:26.2]} 67. Qc7+ {[%clk 0:00:04.9]}
67... Ka8 {[%clk 0:00:26.4]} 68. Qa7# {[%clk 0:00:05.8]} 1-0

[Event "*** SCC Grand Prix: Titled Tuesday Blitz"]
[Site "Chess.com"]
[Date "2020.07.14"]
[Round "6"]
[White "warmoatmeal"]
[Black "Zq1"]
[Result "1-0"]
[WhiteElo "2334"]
[BlackElo "2473"]
[TimeControl "180+1"]
[EndTime "11:08:19 PDT"]
[Termination "warmoatmeal won by resignation"]

1. Nf3 {[%clk 0:03:00.7]} 1... Nf6 {[%clk 0:02:58.7]} 2. d4 {[%clk 0:02:53.1]}
2... e6 {[%clk 0:02:56.9]} 3. Bf4 {[%clk 0:02:51.2]} 3... b6 {[%clk 0:02:56.1]}
4. e3 {[%clk 0:02:50.9]} 4... Bb7 {[%clk 0:02:56.1]} 5. Be2 {[%clk 0:02:51.3]}
5... Be7 {[%clk 0:02:56.2]} 6. O-O {[%clk 0:02:52.2]} 6... Nh5 {[%clk
0:02:52.3]} 7. Bg3 {[%clk 0:02:52]} 7... O-O {[%clk 0:02:43.3]} 8. c4 {[%clk
0:02:47.7]} 8... d6 {[%clk 0:02:35.9]} 9. Nc3 {[%clk 0:02:47.4]} 9... f5 {[%clk
0:02:30.6]} 10. b4 {[%clk 0:02:27.5]} 10... Nd7 {[%clk 0:02:26.1]} 11. Qb3
{[%clk 0:02:25.1]} 11... Nxg3 {[%clk 0:01:55.6]} 12. hxg3 {[%clk 0:02:24.7]}
12... Nf6 {[%clk 0:01:54.9]} 13. Rfd1 {[%clk 0:02:08.4]} 13... h6 {[%clk
0:01:47.8]} 14. c5 {[%clk 0:02:07.5]} 14... Nd5 {[%clk 0:01:44]} 15. Nxd5 {[%clk
0:02:07.3]} 15... Bxd5 {[%clk 0:01:42.3]} 16. Bc4 {[%clk 0:02:07.9]} 16... c6
{[%clk 0:01:21.1]} 17. cxd6 {[%clk 0:01:58.1]} 17... Bxd6 {[%clk 0:01:19.4]} 18.
Ne5 {[%clk 0:01:58.3]} 18... Bxe5 {[%clk 0:01:16.6]} 19. dxe5 {[%clk 0:01:58.3]}
19... Qe7 {[%clk 0:00:59.8]} 20. Bxd5 {[%clk 0:01:56.4]} 20... cxd5 {[%clk
0:00:56.3]} 21. Rac1 {[%clk 0:01:53.5]} 21... Rfc8 {[%clk 0:00:54.6]} 22. Qb2
{[%clk 0:01:51.8]} 22... Qd7 {[%clk 0:00:48.7]} 23. Rxc8+ {[%clk 0:01:47]} 23...
Rxc8 {[%clk 0:00:47.9]} 24. Rc1 {[%clk 0:01:47.6]} 24... Rc4 {[%clk 0:00:47.2]}
25. a3 {[%clk 0:01:07.9]} 25... Qc6 {[%clk 0:00:42]} 26. Rd1 {[%clk 0:01:03.5]}
26... Rc2 {[%clk 0:00:39.1]} 27. Qd4 {[%clk 0:01:01.8]} 27... Qc4 {[%clk
0:00:34.8]} 28. Qxc4 {[%clk 0:00:47.3]} 28... Rxc4 {[%clk 0:00:33.9]} 29. Rd3
{[%clk 0:00:46.5]} 29... Rc1+ {[%clk 0:00:28.4]} 30. Kh2 {[%clk 0:00:46.7]}
30... g5 {[%clk 0:00:25.9]} 31. f4 {[%clk 0:00:46.9]} 31... g4 {[%clk
0:00:19.8]} 32. Rb3 {[%clk 0:00:46]} 32... b5 {[%clk 0:00:18.5]} 33. a4 {[%clk
0:00:42.7]} 33... a6 {[%clk 0:00:16.2]} 34. axb5 {[%clk 0:00:39.5]} 34... axb5
{[%clk 0:00:16.3]} 35. Ra3 {[%clk 0:00:40.4]} 35... Rc4 {[%clk 0:00:15.9]} 36.
Ra8+ {[%clk 0:00:35.6]} 36... Kf7 {[%clk 0:00:15.4]} 37. Ra7+ {[%clk 0:00:36.5]}
37... Kf8 {[%clk 0:00:15.6]} 38. Ra8+ {[%clk 0:00:34.4]} 38... Kf7 {[%clk
0:00:15.5]} 39. Ra7+ {[%clk 0:00:34.4]} 39... Ke8 {[%clk 0:00:13.8]} 40. Ra8+
{[%clk 0:00:34.3]} 40... Kd7 {[%clk 0:00:13.7]} 41. Ra7+ {[%clk 0:00:34.4]}
41... Rc7 {[%clk 0:00:12.8]} 42. Ra5 {[%clk 0:00:28.7]} 42... Rb7 {[%clk
0:00:11.4]} 43. Kg1 {[%clk 0:00:28.8]} 43... Kc6 {[%clk 0:00:10.2]} 44. Kf2
{[%clk 0:00:28]} 44... d4 {[%clk 0:00:09]} 45. exd4 {[%clk 0:00:27.9]} 45... Kd5
{[%clk 0:00:09.2]} 46. Ke3 {[%clk 0:00:28.4]} 46... Kc4 {[%clk 0:00:09.3]} 47.
Ra6 {[%clk 0:00:29.1]} 47... Re7 {[%clk 0:00:08.1]} 48. Rc6+ {[%clk 0:00:19.9]}
48... Kxb4 {[%clk 0:00:07.9]} 49. d5 {[%clk 0:00:20.2]} 49... exd5 {[%clk
0:00:07.2]} 50. Kd4 {[%clk 0:00:20.8]} 50... Kb3 {[%clk 0:00:05.7]} 51. Kxd5
{[%clk 0:00:15.2]} 51... b4 {[%clk 0:00:06]} 52. e6 {[%clk 0:00:15.8]} 52... Kb2
{[%clk 0:00:05.4]} 53. Rb6 {[%clk 0:00:15.9]} 53... b3 {[%clk 0:00:05.1]} 54.
Kd6 {[%clk 0:00:16.3]} 54... Re8 {[%clk 0:00:04.4]} 55. e7 {[%clk 0:00:16.7]}
55... Kc3 {[%clk 0:00:03.6]} 56. Kd7 {[%clk 0:00:15]} 56... Ra8 {[%clk
0:00:03.4]} 57. e8=Q {[%clk 0:00:12.5]} 57... Rxe8 {[%clk 0:00:03.5]} 58. Kxe8
{[%clk 0:00:13.4]} 58... b2 {[%clk 0:00:02.8]} 59. Kf7 {[%clk 0:00:13.7]} 1-0

[Event "*** SCC Grand Prix: Titled Tuesday Blitz"]
[Site "Chess.com"]
[Date "2020.07.14"]
[Round "6"]
[White "marabu44"]
[Black "LuckSlayeer"]
[Result "0-1"]
[WhiteElo "2245"]
[BlackElo "2403"]
[TimeControl "180+1"]
[EndTime "11:08:19 PDT"]
[Termination "LuckSlayeer won by resignation"]

1. Nf3 {[%clk 0:02:59.6]} 1... d5 {[%clk 0:02:59.6]} 2. d4 {[%clk 0:02:59.1]}
2... Nf6 {[%clk 0:02:59.3]} 3. c4 {[%clk 0:02:59]} 3... e6 {[%clk 0:02:58.5]} 4.
Nc3 {[%clk 0:02:58.6]} 4... Be7 {[%clk 0:02:56]} 5. cxd5 {[%clk 0:02:58.5]} 5...
exd5 {[%clk 0:02:56.1]} 6. Qc2 {[%clk 0:02:57.9]} 6... O-O {[%clk 0:02:54]} 7.
Bg5 {[%clk 0:02:57.1]} 7... h6 {[%clk 0:02:48.5]} 8. Bh4 {[%clk 0:02:56.3]} 8...
c6 {[%clk 0:02:42.3]} 9. e3 {[%clk 0:02:55.8]} 9... Re8 {[%clk 0:02:42.2]} 10.
Bd3 {[%clk 0:02:55.3]} 10... Ne4 {[%clk 0:02:37]} 11. Bxe7 {[%clk 0:02:51.6]}
11... Qxe7 {[%clk 0:02:37.9]} 12. Bxe4 {[%clk 0:02:43.2]} 12... dxe4 {[%clk
0:02:38.8]} 13. Ne5 {[%clk 0:02:43.3]} 13... Nd7 {[%clk 0:02:19.6]} 14. Nxd7
{[%clk 0:02:41.2]} 14... Bxd7 {[%clk 0:02:20.5]} 15. O-O {[%clk 0:02:41.1]}
15... Bf5 {[%clk 0:02:13.8]} 16. Rad1 {[%clk 0:02:35.6]} 16... Qg5 {[%clk
0:02:10.8]} 17. Kh1 {[%clk 0:02:33.6]} 17... h5 {[%clk 0:02:03.6]} 18. d5 {[%clk
0:02:30.9]} 18... h4 {[%clk 0:02:00.3]} 19. h3 {[%clk 0:02:25.3]} 19... Rac8
{[%clk 0:01:53.7]} 20. dxc6 {[%clk 0:02:21.1]} 20... Rxc6 {[%clk 0:01:52.2]} 21.
Rd5 {[%clk 0:02:07.6]} 21... Rg6 {[%clk 0:01:38.8]} 22. Rg1 {[%clk 0:02:06.3]}
22... Qf6 {[%clk 0:01:34.9]} 23. Qe2 {[%clk 0:01:54.4]} 23... Qe6 {[%clk
0:01:26.3]} 24. Kh2 {[%clk 0:01:48.4]} 24... Rg5 {[%clk 0:01:05.5]} 25. Qb5
{[%clk 0:01:39.1]} 25... b6 {[%clk 0:00:52.1]} 26. Ne2 {[%clk 0:01:17.4]} 26...
a6 {[%clk 0:00:39.2]} 27. Qb3 {[%clk 0:01:16.6]} 27... Qc6 {[%clk 0:00:28.1]}
28. Nf4 {[%clk 0:01:10.9]} 28... Qc7 {[%clk 0:00:18.4]} 29. Kh1 {[%clk
0:01:08.4]} 29... Rd8 {[%clk 0:00:10.4]} 30. Rgd1 {[%clk 0:01:01.8]} 30... Rxd5
{[%clk 0:00:09.7]} 31. Qxd5 {[%clk 0:01:00.5]} 31... Kh7 {[%clk 0:00:10.1]} 32.
Qd6 {[%clk 0:00:57.1]} 32... Qc2 {[%clk 0:00:08.1]} 33. Qd2 {[%clk 0:00:56.1]}
33... Qc4 {[%clk 0:00:07.6]} 34. Qc3 {[%clk 0:00:54.6]} 34... Qa4 {[%clk
0:00:06.1]} 35. Qb3 {[%clk 0:00:25.5]} 35... Qxb3 {[%clk 0:00:05.5]} 36. axb3
{[%clk 0:00:25.4]} 36... Bc8 {[%clk 0:00:06]} 37. Rd5 {[%clk 0:00:23.6]} 37...
Rxd5 {[%clk 0:00:05.3]} 38. Nxd5 {[%clk 0:00:23.4]} 38... b5 {[%clk 0:00:05.8]}
39. Kg1 {[%clk 0:00:21.2]} 39... f6 {[%clk 0:00:04.2]} 40. Kf1 {[%clk
0:00:20.8]} 40... Bb7 {[%clk 0:00:03.2]} 41. Ne7 {[%clk 0:00:20.1]} 41... g6
{[%clk 0:00:02.3]} 42. Ke2 {[%clk 0:00:19]} 42... Kg7 {[%clk 0:00:02.8]} 43. Kd2
{[%clk 0:00:18.7]} 43... Kf7 {[%clk 0:00:03.3]} 44. Nxg6 {[%clk 0:00:16]} 44...
Kxg6 {[%clk 0:00:03.6]} 45. Kc3 {[%clk 0:00:16.6]} 45... Kf5 {[%clk 0:00:03.8]}
46. Kd4 {[%clk 0:00:16.9]} 46... Bc8 {[%clk 0:00:04.3]} 47. Kc5 {[%clk
0:00:16.9]} 47... Ke5 {[%clk 0:00:04.9]} 48. Kc6 {[%clk 0:00:17.1]} 48... f5
{[%clk 0:00:04.4]} 49. Kc7 {[%clk 0:00:17.4]} 49... Be6 {[%clk 0:00:04.5]} 50.
Kb6 {[%clk 0:00:17.3]} 50... Bxb3 {[%clk 0:00:04.7]} 51. Kxa6 {[%clk 0:00:17.6]}
51... Bc4 {[%clk 0:00:05.1]} 52. Kb6 {[%clk 0:00:17]} 52... Bf1 {[%clk
0:00:05.3]} 53. g3 {[%clk 0:00:17]} 53... hxg3 {[%clk 0:00:05.5]} 54. fxg3
{[%clk 0:00:17.3]} 54... Bxh3 {[%clk 0:00:05.6]} 55. Kxb5 {[%clk 0:00:17.1]}
55... Bf1+ {[%clk 0:00:05.8]} 56. Kc5 {[%clk 0:00:17.1]} 56... Kf6 {[%clk
0:00:05.6]} 57. b4 {[%clk 0:00:12.3]} 57... Kg5 {[%clk 0:00:06]} 58. Kd5 {[%clk
0:00:12.4]} 58... Kg4 {[%clk 0:00:05.3]} 59. Ke5 {[%clk 0:00:12.7]} 59... Bb5
{[%clk 0:00:05.4]} 60. Kf6 {[%clk 0:00:11.7]} 60... Bd7 {[%clk 0:00:05.5]} 61.
Ke5 {[%clk 0:00:10.8]} 61... Kxg3 {[%clk 0:00:04]} 62. Kd6 {[%clk 0:00:10.3]}
62... Bb5 {[%clk 0:00:03.1]} 63. Kc5 {[%clk 0:00:10.4]} 63... Bd3 {[%clk
0:00:03.3]} 64. b5 {[%clk 0:00:09.8]} 64... Bxb5 {[%clk 0:00:03.5]} 65. Kxb5
{[%clk 0:00:10.2]} 65... Kf3 {[%clk 0:00:04.1]} 0-1